lending/lending_fUSD_20240703
["ID","MTS","AMOUNT","RATE_DAILY","PERIOD"]
[330974069,1719977446479,-270.15480938,0.0002,2]
[330974071,1719977446489,-270.15480938,0.0002,2]
[330974073,1719977446498,-270.15480938,0.0002,2]
[330974075,1719977446508,-1019.03904142,0.00021917,4]
[330974077,1719977446517,-1660.14,0.00021917,4]
[330974079,1719977446526,-1660.14,0.00021917,4]
[330974081,1719977446535,-1660.14,0.00021917,4]
[330974084,1719977446544,-1660.14,0.00021917,4]
[330974087,1719977446553,-1660.14,0.00021917,4]
[330974089,1719977446564,-1660.14,0.00021917,4]
[330974092,1719977446575,-1660.14,0.00021917,4]
[330974095,1719977446585,-1660.14,0.00021917,4]
[330974098,1719977446594,-1660.14,0.00021917,4]
[330974101,1719977446603,-1660.14,0.00021917,4]
[330974104,1719977446612,-1660.14,0.00021917,4]
[330974107,1719977446622,-1660.14,0.00021917,4]
[330974110,1719977446631,-1660.14,0.00021917,4]
[330974113,1719977446642,-1660.14,0.00021917,4]
[330974115,1719977446651,-1660.14,0.00021917,4]
[330974117,1719977446660,-1187.18888617,0.00021917,4]
[330974120,1719977446677,-472.95111383,0.00021917,4]
[330974122,1719977446686,-1660.26166887,0.00021917,4]
[330974125,1719977446704,-1776.77,0.00021917,4]
[330974127,1719977446716,-1776.77,0.00021917,4]
[330974129,1719977446726,-1776.77,0.00021917,4]
[330974131,1719977446737,-1776.77,0.00021917,4]
[330974134,1719977446746,-1776.77,0.00021917,4]
[330974136,1719977446757,-1776.77,0.00021917,4]
[330974138,1719977446766,-1776.77,0.00021917,4]
[330974140,1719977446776,-1776.77,0.00021917,4]
[330974142,1719977446786,-1776.77,0.00021917,4]
[330974144,1719977446796,-1776.77,0.00021917,4]
[330974146,1719977446806,-1776.77,0.00021917,4]
[330974148,1719977446816,-1776.77,0.00021917,4]
[330974150,1719977446828,-1776.77,0.00021917,4]
[330974152,1719977446839,-1776.77,0.00021917,4]
[330974154,1719977446850,-1776.77,0.00021917,4]
[330974156,1719977446860,-1776.77,0.00021917,4]
[330974159,1719977446870,-1776.77,0.00021917,4]
[330974161,1719977446879,-1776.77,0.00021917,4]
[330974163,1719977446889,-1776.77,0.00021917,4]
[330974165,1719977446899,-1776.77,0.00021917,4]
[330974167,1719977446909,-1776.77,0.00021917,4]
[330974169,1719977446919,-1776.77,0.00021917,4]
[330974171,1719977446928,-1776.77,0.00021917,4]
[330974173,1719977446938,-1776.84368424,0.00021917,4]
[330974175,1719977446949,-1345.91,0.00021917,4]
[330974177,1719977446959,-1345.91,0.00021917,4]
[330974179,1719977446969,-1345.91,0.00021917,4]
[330974181,1719977446979,-1345.91,0.00021917,4]
[330974183,1719977446988,-1345.91,0.00021917,4]
[330974185,1719977446998,-1345.91,0.00021917,4]
[330974187,1719977447008,-1345.91,0.00021917,4]
[330974189,1719977447018,-1345.91,0.00021917,4]
[330974192,1719977447028,-1345.91,0.00021917,4]
[330974194,1719977447039,-1345.91,0.00021917,4]
[330974196,1719977447050,-1345.91,0.00021917,4]
[330974198,1719977447059,-1345.91,0.00021917,4]
[330974200,1719977447069,-295.31353307,0.00021917,4]
[330974211,1719977447095,-1050.59646693,0.00021917,4]
[330974214,1719977447105,-554.75533683,0.00021917,4]
[330974219,1719977447118,-791.15466317,0.00021917,4]
[330974222,1719977447128,-374.24297376,0.00021917,4]
[330974225,1719977447140,-971.66702624,0.00021917,4]
[330974228,1719977447150,-1345.91,0.00021917,4]
[330974230,1719977447160,-1345.91,0.00021917,4]
[330974233,1719977447170,-1345.91,0.00021917,4]
[330974235,1719977447179,-1345.91,0.00021917,4]
[330974237,1719977447188,-1345.91,0.00021917,4]
[330974239,1719977447199,-1345.91,0.00021917,4]
[330974241,1719977447208,-1345.91,0.00021917,4]
[330974243,1719977447219,-1345.91,0.00021917,4]
[330974245,1719977447228,-1346.04920197,0.00021917,4]
[330974247,1719977447240,-500.0,0.00021917,4]
[330974249,1719977447249,-500.0,0.00021917,4]
[330974251,1719977447259,-500.0,0.00021917,4]
[330974253,1719977447268,-500.0,0.00021917,4]
[330974255,1719977447278,-500.0,0.00021917,4]
[330974257,1719977447287,-500.0,0.00021917,4]
[330974259,1719977447297,-500.0,0.00021917,4]
[330974261,1719977447306,-500.0,0.00021917,4]
[330974263,1719977447315,-500.0,0.00021917,4]
[330974265,1719977447325,-500.0,0.00021917,4]
[330974267,1719977447335,-500.0,0.00021917,4]
[330974269,1719977447344,-500.0,0.00021917,4]
[330974271,1719977447354,-500.0,0.00021917,4]
[330974273,1719977447364,-500.0,0.00021917,4]
[330974275,1719977447374,-500.0,0.00021917,4]
[330974277,1719977447383,-500.0,0.00021917,4]
[330974280,1719977447394,-500.0,0.00021917,4]
[330974282,1719977447404,-477.85761562,0.00021917,4]
[330974284,1719977447413,-1370.65,0.00021917,4]
[330974286,1719977447422,-987.4,0.00021917,4]
[330974288,1719977447431,-987.4,0.00021917,4]
[330974290,1719977447441,-987.4,0.00021917,4]
[330974292,1719977447456,-945.9,0.00021917,4]
[330974294,1719977447468,-945.9,0.00021917,4]
[330974296,1719977447477,-945.9,0.00021917,4]
[330974298,1719977447487,-945.9,0.00021917,4]
[330974300,1719977447496,-945.9,0.00021917,4]
[330974302,1719977447506,-1897.82,0.00021917,4]
[330974304,1719977447515,-1897.82,0.00021917,4]
[330974306,1719977447524,-1897.82,0.00021917,4]
[330974308,1719977447533,-1818.75,0.00021917,4]
[330974311,1719977447546,-1897.82,0.00021917,4]
[330974313,1719977447556,-1818.75,0.00021917,4]
[330974315,1719977447568,-1897.82,0.00021917,4]
[330974317,1719977447579,-1818.75,0.00021917,4]
[330974319,1719977447589,-1897.82,0.00021917,4]
[330974321,1719977447598,-1818.75,0.00021917,4]
[330974323,1719977447610,-1897.82,0.00021917,4]
[330974325,1719977447619,-1818.75,0.00021917,4]
[330974327,1719977447629,-1897.82,0.00021917,4]
[330974329,1719977447639,-1897.82,0.00021917,4]
[330974331,1719977447651,-1897.82,0.00021917,4]
[330974333,1719977447661,-1897.82,0.00021917,4]
[330974335,1719977447671,-1897.82,0.00021917,4]
[330974337,1719977447681,-1897.82,0.00021917,4]
[330974340,1719977447691,-1897.82,0.00021917,4]
[330974342,1719977447705,-1898.02527261,0.00021917,4]
[330974344,1719977447714,-500.0,0.00021917,4]
[330974346,1719977447723,-500.0,0.00021917,4]
[330974348,1719977447733,-319.31045812,0.00021917,4]
[330974350,1719977447743,-1101.7,0.00021917,4]
[330974352,1719977447753,-1101.7,0.00021917,4]
[330974354,1719977447762,-1101.7,0.00021917,4]
[330974356,1719977447772,-1101.7,0.00021917,4]
[330974358,1719977447782,-1101.7,0.00021917,4]
[330974360,1719977447791,-1101.7,0.00021917,4]
[330974362,1719977447801,-616.31292477,0.00021917,4]
[330974367,1719977447837,-370.113,0.00021917,4]
[330974369,1719977447849,-115.27407523,0.00021917,4]
[330974371,1719977447860,-1101.7,0.00021917,4]
[330974374,1719977447869,-3.02592477,0.00021917,4]
[330974400,1719977448142,-807.691,0.00019457,2]
[330974401,1719977448151,-270.15480938,0.0002,2]
[330974402,1719977448161,-270.15480938,0.0002,2]
[330974403,1719977448171,-270.15480938,0.0002,2]
[330974404,1719977448181,-270.15480938,0.0002,2]
[330974405,1719977448191,-270.15480938,0.0002,2]
[330974406,1719977448202,-270.15480938,0.0002,2]
[330974407,1719977448212,-83.63014373,0.00020021,2]
[330974408,1719977448228,-186.52466565,0.00020021,2]
[330974409,1719977448239,-270.15480938,0.00020117,2]
[330974410,1719977448248,-270.15480938,0.0002019,2]
[330974411,1719977448258,-305.39296636,0.00021912,2]
[330974412,1719977448267,-1098.67407523,0.00021917,4]
[330974413,1719977448277,-1101.7,0.00021917,4]
[330974414,1719977448287,-1101.7,0.00021917,4]
[330974415,1719977448296,-1101.7,0.00021917,4]
[330974416,1719977448306,-500.0,0.00021917,4]
[330974417,1719977448315,-500.0,0.00021917,4]
[330974418,1719977448325,-500.0,0.00021917,4]
[330974419,1719977448335,-500.0,0.00021917,4]
[330974420,1719977448345,-1101.7,0.00021917,4]
[330974421,1719977448355,-500.0,0.00021917,4]
[330974422,1719977448365,-500.0,0.00021917,4]
[330974423,1719977448375,-500.0,0.00021917,4]
[330974424,1719977448385,-500.0,0.00021917,4]
[330974425,1719977448395,-500.0,0.00021917,4]
[330974426,1719977448405,-1101.7,0.00021917,4]
[330974427,1719977448415,-500.0,0.00021917,4]
[330974428,1719977448425,-500.0,0.00021917,4]
[330974429,1719977448435,-1101.7,0.00021917,4]
[330974430,1719977448444,-500.0,0.00021917,4]
[330974431,1719977448455,-500.0,0.00021917,4]
[330974432,1719977448465,-36.648674,0.00021917,4]
[330974433,1719977448484,-463.351326,0.00021917,4]
[330974434,1719977448616,-1101.7,0.00021917,4]
[330974435,1719977448626,-500.0,0.00021917,4]
[330974436,1719977448636,-500.0,0.00021917,4]
[330974437,1719977448648,-268.14657617,0.00021917,4]
[330974438,1719977448662,-231.85342383,0.00021917,4]
[330974439,1719977448672,-1101.7,0.00021917,4]
[330974440,1719977448681,-500.0,0.00021917,4]
[330974441,1719977448691,-396.24918252,0.00021917,4]
[330974442,1719977448702,-500.0,0.00021917,4]
[330974443,1719977448712,-1101.7,0.00021917,4]
[330974444,1719977448721,-500.0,0.00021917,4]
[330974445,1719977448730,-500.0,0.00021917,4]
[330974446,1719977448740,-500.0,0.00021917,4]
[330974447,1719977448749,-764.99739365,0.00021917,4]
[330974448,1719977448764,-336.70260635,0.00021917,4]
[330974449,1719977448773,-648.57679289,0.00021917,4]
[330974450,1719977448783,-363.80640382,0.00021917,4]
[330974454,1719977511213,-11483.0,0.000177,5]
[330974455,1719977521160,-178.95404629,0.00015067,2]
[330974456,1719977521193,-271.0,0.000173,3]
[330974457,1719977521224,-218.70143721,0.00018899,2]
[330974458,1719977521265,-8.41940498,0.00018899,2]
[330974460,1719977536909,152.26339483,0.0001853,2]
[330974461,1719977537011,155.86613527,0.00018591,2]
[330974462,1719977537590,85.86044686,0.00018748,2]
[330974463,1719977537913,278.50472698,0.00018748,2]
[330974464,1719977538930,390.15075652,0.0001829,2]
[330974465,1719977538962,3.32924348,0.0001829,2]
[330974466,1719977539682,253.90640732,0.00018975,2]
[330974467,1719977547876,166.66666666,0.00018696,2]
[330974468,1719977551428,244.75316604,0.0001865,2]
[330974469,1719977551459,160.7505861,0.0001865,2]
[330974470,1719977551891,405.50375214,0.00018697,2]
[330974471,1719977552368,102.40114526,0.0001884,2]
[330974472,1719977552397,303.10260688,0.0001884,2]
[330974473,1719977552765,166.30467267,0.00018731,2]
[330974474,1719977552812,199.24820395,0.00018581,2]
[330974475,1719977552844,16.55012481,0.00018581,2]
[330974476,1719977552903,405.50375214,0.00018897,2]
[330974477,1719977553341,215.79832876,0.0001863,2]
[330974478,1719977553389,30.80327779,0.0001863,2]
[330974479,1719977553418,164.10962809,0.0001863,2]
[330974480,1719977553869,153.3585097,0.00018776,2]
[330974481,1719977553915,215.79832876,0.00018694,2]
[330974482,1719977553954,135.38901695,0.00018803,2]
[330974483,1719977553984,59.52388893,0.00018803,2]
[330974484,1719977554397,215.79832876,0.00018962,2]
[330974485,1719977554432,194.91290588,0.00018878,2]
[330974486,1719977554988,166.66666667,0.00018883,2]
[330974487,1719977620753,31.75369326,0.00018993,30]
[330974488,1719977645443,1574.51801113,0.000118,2]
[330974493,1719977849761,-150.0,0.00013998,2]
[330974494,1719977849784,-500.0,0.00013999,2]
[330974495,1719977849806,-298.83275246,0.00013999,2]
[330974496,1719977849828,-606.28694828,0.00013999,2]
[330974497,1719977849850,-500.0,0.00013999,2]
[330974498,1719977849870,-324.41010804,0.00013999,2]
[330974499,1719977849894,-259.26140862,0.00013999,2]
[330974500,1719977849916,-500.0,0.00013999,2]
[330974501,1719977849937,-500.0,0.00013999,2]
[330974502,1719977849958,-500.0,0.00013999,2]
[330974503,1719977849983,-500.0,0.00013999,2]
[330974504,1719977850006,-500.0,0.00013999,2]
[330974505,1719977850027,-500.0,0.00013999,2]
[330974506,1719977850048,-500.0,0.00013999,2]
[330974507,1719977850079,-463.54653375,0.00013999,2]
[330974508,1719977850100,-500.0,0.00013999,2]
[330974509,1719977850122,-500.0,0.00013999,2]
[330974510,1719977850144,-408.63069507,0.00013999,2]
[330974511,1719977850164,-500.0,0.00013999,2]
[330974512,1719977850186,-500.0,0.00013999,2]
[330974513,1719977850208,-500.0,0.00013999,2]
[330974514,1719977850229,-500.0,0.00013999,2]
[330974515,1719977850251,-500.0,0.00013999,2]
[330974516,1719977850275,-279489.03155378,0.00014,2]
[330974518,1719977911824,150.5,0.0001499,30]
[330974519,1719977912296,446.67198154,0.000118,2]
[330974520,1719977912360,150.5,0.0001498,30]
[330974521,1719977912905,154.59,0.0001497,30]
[330974523,1719978031199,150.5,0.0001499,30]
[330974524,1719978031713,150.5,0.0001498,30]
[330974525,1719978032200,251.0,0.0001497,30]
[330974527,1719978235046,-1903.22472733,0.00013516,2]
[330974528,1719978235068,-2096.77527267,0.00013584,2]
[330974529,1719978236690,-253.22472733,0.00013584,2]
[330974530,1719978236710,-163.56605059,0.00013799,2]
[330974531,1719978236733,-171.11399621,0.000139,2]
[330974532,1719978236753,-163.56605059,0.000139,2]
[330974533,1719978236772,-284.58,0.0001399,3]
[330974534,1719978236792,-150.0,0.00013999,2]
[330974535,1719978236821,-2813.94917528,0.00014,2]
[330974536,1719978237960,-4000.0,0.00014,2]
[330974537,1719978254442,-300.0,0.00013999,2]
[330974538,1719978254467,-700.0,0.00014,2]
[330974539,1719978256516,-1000.0,0.00014,2]
[330974540,1719978258625,-1000.0,0.00014,2]
[330974541,1719978272150,150.5,0.0001499,30]
[330974542,1719978272641,258.42,0.0001498,30]
[330974578,1719978631543,-315.78763447,0.00013945,2]
[330974580,1719978631552,-1184.21236553,0.00014,2]
[330974582,1719978631565,-337.01913656,0.00014,2]
[330974584,1719978631576,-306.20467746,0.00014,2]
[330974586,1719978631588,-3255.09037,0.00014,2]
[330974587,1719978633571,-621.08912678,0.00014,2]
[330974588,1719978633592,-12414.34321043,0.00014,2]
[330974589,1719978633640,-2722.04110642,0.00014,2]
[330974590,1719978633708,-708.93506769,0.00014,2]
[330974591,1719978633719,-534.02643243,0.00014,2]
[330974592,1719978633730,-472.14322502,0.00014,2]
[330974593,1719978633742,-4475.52028849,0.00014,2]
[330974594,1719978633776,-298.96499867,0.00014,2]
[330974595,1719978633787,-2146.38,0.00014,2]
[330974596,1719978633808,-5506.62554695,0.00014,2]
[330974597,1719978633820,-9144.07795094,0.00014,2]
[330974598,1719978633832,-16546.21907029,0.00014,2]
[330974599,1719978633849,-748.65194149,0.00014,2]
[330974600,1719978633861,-299.6900001,0.00014,2]
[330974601,1719978633872,-2697.05711625,0.00014,2]
[330974602,1719978633884,-389.84087267,0.00014,2]
[330974603,1719978633896,-711.72882134,0.00014,2]
[330974607,1719978637764,-251.9475,0.00014,2]
[330974608,1719978637778,-1662.12038026,0.00014,2]
[330974630,1719978638204,-5407.98550678,0.00014,2]
[330974642,1719978639803,-48362.26734105,0.00014,2]
[330974643,1719978640122,-1011.9918211,0.00014,2]
[330974644,1719978640134,-3669.87744349,0.00014,2]
[330974645,1719978640299,-75862.34857385,0.00014,2]
[330974655,1719978642741,-292.35005528,0.00014,2]
[330974656,1719978642804,-2429.2962916,0.00014,2]
[330974657,1719978643543,-433938.53998831,0.00014,2]
[330974658,1719978643555,-372.82318046,0.00014,2]
[330974659,1719978643582,-5925.51205195,0.00014,2]
[330974660,1719978643594,-9013.5259233,0.00014,2]
[330974663,1719978646010,-17806.06610168,0.00014,2]
[330974664,1719978646224,-384.50318454,0.00014,2]
[330974668,1719978848566,668.14003904,0.00011199,2]
[330974669,1719978848598,668.14003904,0.00011199,2]
[330974670,1719978848628,668.14003904,0.00011199,2]
[330974671,1719978848659,668.14003904,0.00011199,2]
[330974672,1719978848689,668.14003904,0.00011199,2]
[330974673,1719978848721,668.14003904,0.00011199,2]
[330974674,1719978848753,668.14003904,0.00011199,2]
[330974675,1719978848784,72294.00513762,0.00011199,2]
[330974676,1719978848816,158105.12883651,0.00011199,2]
[330974677,1719978870105,150.5,0.00015735,30]
[330974678,1719978870591,150.5,0.00015725,30]
[330974679,1719978871062,150.5,0.00015715,30]
[330974686,1719979278235,21408.83546737,0.00011199,2]
[330974687,1719979342449,252.6847755,0.00011199,2]
[330974688,1719979350233,8879.23119015,0.00011199,2]
[330974689,1719979357182,259.55461446,0.00011199,2]
[330974690,1719979361868,459.03935982,0.00011199,2]
[330974691,1719979453206,4626.07945007,0.00011199,2]
[330974693,1719979461249,414.00571,0.00011199,2]
[330974694,1719979560220,4626.07945007,0.00011199,2]
[330974695,1719979575422,4626.07945007,0.00011199,2]
[330974696,1719979690295,4626.07945007,0.00011199,2]
[330974698,1719979719432,-646.58230707,0.00012302,2]
[330974701,1719979742602,3661.76164979,0.00011199,2]
[330974702,1719979742625,100182.33375745,0.00011199,2]
[330974709,1719979793723,4626.07945007,0.00011199,2]
[330974713,1719979808424,388.93488789,0.00011199,2]
[330974722,1719979832806,-161.25976206,0.00012222,2]
[330974723,1719979832816,-386.32,0.00012422,2]
[330974724,1719979832826,-544.6250011,0.00013574,2]
[330974725,1719979832839,-206.48368985,0.00013574,2]
[330974726,1719979832848,-330.73727759,0.00013574,2]
[330974727,1719979832872,-397.56791311,0.00013574,2]
[330974728,1719979832885,-3897.77425937,0.00013574,2]
[330974729,1719979832894,-2015.6022,0.000139,2]
[330974730,1719979832903,-2579.94562505,0.000139,2]
[330974731,1719979832917,-302.11780374,0.000139,2]
[330974732,1719979832928,-997.8724334,0.000139,2]
[330974733,1719979832943,-1074.32,0.000139,2]
[330974734,1719979832954,-642.3977412,0.000139,2]
[330974735,1719979833300,-3991.66179661,0.000139,2]
[330974736,1719979833312,-26584.69711722,0.00014,2]
[330974737,1719979833325,-4866.61354802,0.00014,2]
[330974738,1719979833358,-935.25814264,0.00014,2]
[330974739,1719979833369,-5692.61884254,0.00014,2]
[330974740,1719979833383,-11347.50135339,0.00014,2]
[330974741,1719979833419,-456.76620795,0.00014,2]
[330974744,1719979833432,-956.69375819,0.00014,2]
[330974750,1719979837945,-659.75132017,0.00014,2]
[330974751,1719979838059,-258.02513641,0.00014,2]
[330974752,1719979838177,-807.08544,0.00014,2]
[330974753,1719979838190,-7438.85646845,0.00014,2]
[330974955,1719979840255,-17.17880604,0.00014,2]
[330974973,1719979840436,-32551.35713131,0.00014,2]
[330974980,1719979840495,-769.2082412,0.00014,2]
[330974982,1719979840507,-840.03000002,0.00014,2]
[330975222,1719979842943,-145427.04632062,0.00014,2]
[330975224,1719979842953,-414.00572,0.0001413,2]
[330975226,1719979842962,-250.0,0.00014164,2]
[330975228,1719979842971,-250.0,0.00014221,2]
[330975230,1719979842980,-294.79,0.00014294,2]
[330975232,1719979842990,-227.42,0.00014294,2]
[330975234,1719979842999,-386.32,0.00014686,2]
[330975236,1719979843008,-2000.0,0.0001486,3]
[330975238,1719979843017,-4577.50715442,0.000149,2]
[330975240,1719979843027,-156.98542982,0.000149,2]
[330975242,1719979843036,-205.2034579,0.000149,2]
[330975244,1719979843045,-327.24291454,0.000149,2]
[330975247,1719979843056,-999.99,0.00014936,2]
[330975249,1719979843065,-170.89213395,0.00014999,2]
[330975251,1719979843074,-500.0,0.00014999,2]
[330975253,1719979843083,-423.48800702,0.00014999,2]
[330975255,1719979843092,-500.0,0.00014999,2]
[330975257,1719979843101,-500.0,0.00014999,2]
[330975259,1719979843110,-154.02666798,0.00014999,2]
[330975260,1719979843120,-500.0,0.00014999,2]
[330975263,1719979843130,-500.0,0.00014999,2]
[330975265,1719979843139,-272.13325758,0.00014999,2]
[330975267,1719979843150,-500.0,0.00014999,2]
[330975268,1719979843159,-500.0,0.00014999,2]
[330975270,1719979843169,-500.0,0.00014999,2]
[330975273,1719979843179,-500.0,0.00014999,2]
[330975275,1719979843188,-500.0,0.00014999,2]
[330975277,1719979843197,-500.0,0.00014999,2]
[330975279,1719979843207,-410.56222412,0.00014999,2]
[330975281,1719979843218,-500.0,0.00014999,2]
[330975282,1719979843229,-500.0,0.00014999,2]
[330975284,1719979843238,-323.18118834,0.00014999,2]
[330975287,1719979843248,-1398.95077001,0.00014999,2]
[330975289,1719979843257,-83739.4229667,0.00015,2]
[330975293,1719979843286,-9488.83347032,0.00015,2]
[330975295,1719979843301,-1126.04225366,0.00015,2]
[330975297,1719979843316,-9367.57070698,0.00015,2]
[330975300,1719979843327,-433938.53998831,0.00015,2]
[330975302,1719979843341,-160302.79180645,0.00015,2]
[330975304,1719979843352,-334.87368516,0.00015,2]
[330975307,1719979843368,-940.48156896,0.00015,2]
[330975309,1719979843382,-316.156902,0.00015,2]
[330975311,1719979843393,-25101.98794483,0.00015,2]
[330975320,1719979843481,-336.72639,0.00015,2]
[330975321,1719979843514,-707.66467926,0.00015,2]
[330975454,1719979845885,-459.0836001,0.00013999,2]
[330975455,1719979846163,-239.93145195,0.00013999,2]
[330975456,1719979846173,-3766.54552154,0.00015,2]
[330975457,1719979846263,-1526.375,0.00015,2]
[330975458,1719979846292,-451.23409272,0.00015,2]
[330975459,1719979846309,-4962.79231029,0.00015,2]
[330975460,1719979846321,-1721.43600001,0.00015,2]
[330975461,1719979846335,-1650.24238056,0.00015,2]
[330975462,1719979846347,-6657.95335533,0.00015,2]
[330975500,1719979921826,-610.33,0.00013516,2]
[330975501,1719979921868,-317.45362638,0.00013516,2]
[330975502,1719979921907,-457.51155398,0.00013516,2]
[330975503,1719979921947,-283.46182149,0.00013516,2]
[330975504,1719979921975,-384.04314369,0.00013516,2]
[330975505,1719979922013,-391.35942378,0.00013516,2]
[330975506,1719979922156,-244.54861766,0.00013516,2]
[330975507,1719979922186,-133.19240533,0.00013543,2]
[330975508,1719979922220,-239.39600174,0.00013543,2]
[330975509,1719979922249,-138.34502125,0.00013543,2]
[330975510,1719979922289,-377.74102299,0.00013543,2]
[330975511,1719980142288,655.87156492,0.00011199,2]
[330975512,1719980194744,4626.07945007,0.00011199,2]
[330975513,1719980208464,529.18592309,0.00011199,2]
[330975515,1719980251894,203.17159625,0.00011199,2]
[330975516,1719980254601,220.11202802,0.00011199,2]
[330975517,1719980255267,206.65067973,0.00011199,2]
[330975518,1719980271852,544.6250011,0.00011199,2]
[330975519,1719980283762,4626.07945007,0.00011199,2]
[330975520,1719980306642,381.28590704,0.00011199,2]
[330975521,1719980308818,156.01709951,0.00011199,2]
[330975522,1719980311141,164.1030384,0.00011199,2]
[330975523,1719980313741,4626.07945007,0.00011199,2]
[330975524,1719980315623,237.65799201,0.00011199,2]
[330975525,1719980318501,243.7908539,0.00011199,2]
[330975526,1719980372041,181.61565733,0.00011199,2]
[330975527,1719980383855,155.38071827,0.00011199,2]
[330975528,1719980441736,4774.55513959,0.00011199,2]
[330975535,1719980853524,10927.0,0.00022,120]
[330975537,1719980933004,-739.05261794,0.00012173,2]
[330975539,1719980933058,-739.05261794,0.00012173,2]
[330975541,1719980933107,-450.5998048,0.00012173,2]
[330975543,1719980933140,-288.45281314,0.00012195,2]
[330975545,1719980933177,-105.97718686,0.00012195,2]
[330975546,1719980933334,-370.03809408,0.00012273,2]
[330975547,1719980933368,-187.39799437,0.00013516,2]
[330975548,1719980933443,-346.18428681,0.00013516,2]
[330975549,1719980933470,-222.8249572,0.00013736,2]
[330975550,1719980933499,-170.04337393,0.00013736,2]
[330975551,1719980933542,-67.31508937,0.00013736,2]
[330975552,1719980933570,-173.59426351,0.00013889,2]
[330975553,1719980933599,-222.61749785,0.00013889,2]
[330975554,1719980933633,-275.52576721,0.000139,2]
[330975555,1719980933672,-739.05261794,0.000139,2]
[330975556,1719980957635,-841.0071976,0.00013899,2]
[330975559,1719980957708,-654.11205983,0.00013899,2]
[330975560,1719980957737,-183.37461485,0.000139,2]
[330975563,1719980957766,-3.52052292,0.00013999,2]
[330975564,1719980958033,-151.84181951,0.00013999,2]
[330975565,1719980958066,-394.43,0.00014459,2]
[330975566,1719980958097,-250.0,0.00014499,2]
[330975567,1719980958132,-44.73537809,0.00014542,2]
[330975568,1719980958176,-478.85462191,0.00014542,2]
[330975569,1719980958208,-153.43,0.00014795,2]
[330975570,1719980958239,-208.72257569,0.00014849,2]
[330975571,1719980958283,-266.01987544,0.00014849,2]
[330975572,1719980958314,-153.43,0.0001485,2]
[330975573,1719980958347,-180.0,0.00014899,2]
[330975574,1719980958378,-241.55732216,0.00014899,2]
[330975575,1719980958413,-58.44267784,0.00014899,2]
[330975576,1719980958443,-98.82573347,0.000149,2]
[330975589,1719981031985,-74.62846653,0.000149,2]
[330975590,1719981031994,-280.407,0.000149,2]
[330975591,1719981032004,-5719.96453347,0.000149,2]
[330975592,1719981032016,-700.0,0.000149,2]
[330975593,1719981032071,-977.35236653,0.000149,2]
[330975594,1719981032082,-222.64763347,0.000149,2]
[330975595,1719981032096,-1202.64668923,0.000149,2]
[330975596,1719981032106,-153.43,0.00014905,2]
[330975597,1719981032116,-153.43,0.0001496,2]
[330975598,1719981032125,-163.98,0.00014966,2]
[330975599,1719981032134,-623.24,0.0001499,3]
[330975600,1719981032143,-189.98417699,0.0001499,2]
[330975601,1719981032152,-180.0,0.00014998,2]
[330975602,1719981032161,-202.13420091,0.00014999,5]
[330975603,1719981032171,-266.36569175,0.00014999,2]
[330975604,1719981032181,-266.36569175,0.00014999,2]
[330975605,1719981032190,-1398.95077001,0.00014999,2]
[330975606,1719981032199,-255.79919606,0.00014999,2]
[330975607,1719981032216,-31268.98520368,0.00015,2]
[330975608,1719981032233,-40974.93647159,0.00015,2]
[330975609,1719981032244,-65585.30000004,0.00015,2]
[330975642,1719981038121,-418.31133617,0.00015,2]
[330975643,1719981038208,-2199.44251202,0.00015,2]
[330975644,1719981038297,-347.9736861,0.00015,2]
[330975645,1719981038311,-280.407,0.00015,2]
[330975656,1719981040682,-458.51433691,0.000149,2]